Workbook

Sheet 4 Ob 8-19h Betreuung gerundet
A4: Kennwort für entsperren / schützen = gesperrt | C4: Zahlung | D4: Zahlung | H4: Zahlung | I4: Zahlung
A5: Spalten B-E: BVE bezieht Tlei | B5: Tlei BVE | C5: BVE ==> SVE | D5: BVE <== SVE | E5: Tlei SVE | G5: Tlei BVE | H5: BVE ==> SVE | I5: BVE <== SVE | J5: Tlei SVE
A6: Spalten G-J: SVE bezieht Tlei
A7: Betreuungszeit | B7: 0.5 | E7: =1-B7 -> 0.5 | G7: =BZBVE -> 0.5 | J7: =BZSVE -> 0.5
A8: UBGR | B8: 4312 | E8: 2028 | G8: =UBGRBVE -> 4312 | J8: =UBGRSVE -> 2028
A9: Prozentsatz | B9: 0.18 | E9: 0.18 | G9: =PROZBVE -> 0.18 | J9: =PROZSVE -> 0.18
A10: Prozentunterhalt BVE (PU BVE) | B10: =B8*B9 -> 776.16 | C10: Luxusgrenze? | G10: =PUBVE -> 776.16
A11: Prozentunterhalt SVE (PU SVE) | D11: Luxusgrenze? | E11: =E8*E9 -> 365.04 | J11: =PUSVE -> 365.04
A12: Anteil am Prozentunterhalt | B12: =B10/(B10+E11) -> 0.680126183 | E12: =E11/(B10+E11) -> 0.319873817 | G12: =ANTPUBVE -> 0.680126183 | J12: =ANTPUSVE -> 0.319873817
A13: reduzierter PU BVE | B13: =B10*0.5 -> 388.08 | G13: =REDUHBVE -> 388.08
A14: reduzierter PU SVE | E14: =E11*0.5 -> 182.52 | J14: =REDUHSVE -> 182.52
A15: Verrechnung reduzierte Pue | C15: =B13 -> 388.08 | D15: =E14 -> 182.52 | H15: =C15 -> 388.08 | I15: =D15 -> 182.52
A16: Familienbonus Plus (FB +) (1) | B16: 0 | E16: 0 | G16: =FABOBVE -> 0 | J16: =FABOSVE -> 0
A17: FB + Ausgleich | C17: =B16/2 -> 0 | D17: =E16/2 -> 0 | H17: =C17 -> 0 | I17: =D17 -> 0
A18: Familienbeihilfe (FBH) (2) | B18: 148 | J18: =B18 -> 148
A19: Ausgleich FBH | C19: =B18/2 -> 74 | I19: =J18/2 -> 74
A20: Kinderabsetzbetrag (KAB) | B20: 0 | J20: =B20 -> 0
A21: Ausgleich KAB | C21: =B20/2 -> 0 | I21: =J20/2 -> 0
A22: Unterhaltsabsetzbetrag (UAB) (3) | E22: 0 | G22: 0
A23: Ausgleich UAB | D23: =E22/2 -> 0 | H23: =G22/2 -> 0
A25: Summen vor Saldierung | C25: =SUM(C10:C23) -> 462.08 | D25: =SUM(D7:D23) -> 182.52 | H25: =SUM(H10:H23) -> 388.08 | I25: =SUM(I7:I23) -> 256.52
A26: RU (Zahlung BVE an SVE) | C26: =C25-D25 -> 279.56 | H26: =H25-I25 -> 131.56
A27: RU (Zahlung SVE an BVE)
A28: im Haushalt SVE verbleiben | E28: =C26+E16+E22 -> 279.56 | J28: =H26+J16+J18+J20 -> 279.56
A29: in diese Zellen die Daten eingeben
A30: Inhalt wird berechnet (keine Eingabe) | D30: SVE | F30: im Haushalt verbleiben | J30: SVE
A31: Inhalt wird berechnet (keine Eingabe) | D31: FB+ | E31: =E16 -> 0 | I31: FB+ | J31: =J16 -> 0
A32: Ergebnis wird berechnet (keine Eingabe) | D32: FBH | E32: =E18 -> 0 | I32: FBH | J32: =J18 -> 148
D33: UAB | E33: =E22 -> 0 | I33: KAB | J33: =J20 -> 0
A34: BVE = besser verdienender Elternteil | D34: Zahlung BVE | E34: =C26 -> 279.56 | I34: Zahlung BVE | J34: =H26 -> 131.56
A35: SVE = Schlechter verdienender Elternteil | D35: Summe | E35: =SUM(E31:E34) -> 279.56 | I35: Summe | J35: =SUM(J31:J34) -> 279.56
A36: FB+ = Familienbonus Plus | B36: Info
A37: FBH = Familienbeihilfe | B37: Info
A38: KAB = Kinderabsetzbetrag | B38: Info
A39: PU = Prozentunterhalt
A40: TFLA = Transferleistungsausgleich
A41: Tlei = Transferleistungen
A42: UAB = Unterhaltsabsetzbetrag | B42: Info
A44: (1) zur Anrechnung des FB+
A45: beim betreuungsrechtlichen Unterhaltsmodell
A46: gibt es noch keine Judikatur.
A47: Eine Eingabe ist nur erforderlich, wenn die
A48: Eltern unterschiedliche Beträge gutgeschrieben
A49: erhalten
A50: (2) wenn mehrere Kinder zu beurteilen sind, wird die Summe der Familienbeihilfe nach Köpfen aufgeteilt
A51: (3) wenn mehrere Kinder zu beurteilen sind, wird die Summe der steigenden Unterhaltgsabsetzbeträge nach Köpfen aufgeteilt
A52: Wenn ein Elternteil nicht genug oder keine Lohnsteuer
A53: oder Einkommenssteuer bezahlt, können
A54: Unterhaltsabsetzbeträge entfallen
A55: weil UABE nicht als Negativsteuer ausbezahlt werden

Sheet Betreuung exakt berücksichtigt
A1: Kennwort entsperren / schützen = gesperrt | C1: Zahlung | D1: Zahlung | H1: Zahlung | I1: Zahlung
A2: ='4 Ob 8-19h Betreuung gerundet'!A5 -> Spalten B-E: BVE bezieht Tlei | B2: Tlei BVE | C2: BVE ==> SVE | D2: BVE <== SVE | E2: Tlei SVE | G2: Tlei BVE | H2: BVE ==> SVE | I2: BVE <== SVE | J2: Tlei SVE
A3: ='4 Ob 8-19h Betreuung gerundet'!A6 -> Spalten G-J: SVE bezieht Tlei
A4: ='4 Ob 8-19h Betreuung gerundet'!A7 -> Betreuungszeit | B4: =BZBVE -> 0.5 | E4: =BZSVE -> 0.5 | G4: =BZBVE -> 0.5 | J4: =BZSVE -> 0.5
A5: UBGR | B5: =UBGRBVE -> 4312 | E5: =UBGRSVE -> 2028 | G5: =UBGRBVE -> 4312 | J5: =UBGRSVE -> 2028
A6: Prozentsatz | B6: =PROZBVE -> 0.18 | E6: =PROZSVE -> 0.18 | G6: =PROZBVE -> 0.18 | J6: =PROZSVE -> 0.18
A7: ='4 Ob 8-19h Betreuung gerundet'!A10 -> Prozentunterhalt BVE (PU BVE) | B7: =PUBVE -> 776.16 | G7: =PUBVE -> 776.16
A8: ='4 Ob 8-19h Betreuung gerundet'!A11 -> Prozentunterhalt SVE (PU SVE) | E8: =PUSVE -> 365.04 | J8: =PUSVE -> 365.04
A9: ='4 Ob 8-19h Betreuung gerundet'!A12 -> Anteil am Prozentunterhalt | B9: =B7/(B7+E8) -> 0.680126183 | E9: =E8/(B7+E8) -> 0.319873817 | G9: =G7/(G7+J8) -> 0.680126183 | J9: =J8/(G7+J8) -> 0.319873817
A10: ='4 Ob 8-19h Betreuung gerundet'!A13 -> reduzierter PU BVE | B10: =B7*E4 -> 388.08 | G10: =B10 -> 388.08
A11: ='4 Ob 8-19h Betreuung gerundet'!A14 -> reduzierter PU SVE | E11: =E8*B4 -> 182.52 | J11: =E11 -> 182.52
A12: ='4 Ob 8-19h Betreuung gerundet'!A15 -> Verrechnung reduzierte Pue | C12: =B10 -> 388.08 | D12: =E11 -> 182.52 | H12: =G10 -> 388.08 | I12: =J11 -> 182.52
A13: ='4 Ob 8-19h Betreuung gerundet'!A16 -> Familienbonus Plus (FB +) (1) | B13: =FABOBVE -> 0 | E13: =FABOSVE -> 0 | G13: =FABOBVE -> 0 | J13: =FABOSVE -> 0
A14: ='4 Ob 8-19h Betreuung gerundet'!A17 -> FB + Ausgleich | C14: =B13*E4 -> 0 | D14: =E13*B4 -> 0 | H14: =G13*J4 -> 0 | I14: =J13*G4 -> 0
A15: ='4 Ob 8-19h Betreuung gerundet'!A18 -> Familienbeihilfe (FBH) (2) | B15: =FBHBVE -> 148 | J15: =FBHSVE -> 148
A16: ='4 Ob 8-19h Betreuung gerundet'!A19 -> Ausgleich FBH | C16: =B15*E4 -> 74 | I16: =J15*G4 -> 74
A17: ='4 Ob 8-19h Betreuung gerundet'!A20 -> Kinderabsetzbetrag (KAB) | B17: =KABBVE -> 0 | J17: =KABSVE -> 0
A18: ='4 Ob 8-19h Betreuung gerundet'!A21 -> Ausgleich KAB | C18: =B17*E4 -> 0 | I18: =J17*G4 -> 0
A19: ='4 Ob 8-19h Betreuung gerundet'!A22 -> Unterhaltsabsetzbetrag (UAB) (3) | E19: =UABSVE -> 0 | G19: =UABBVE -> 0
A20: ='4 Ob 8-19h Betreuung gerundet'!A23 -> Ausgleich UAB | D20: =E19*B4 -> 0 | H20: =G19*J4 -> 0
A22: Summen vor Saldierung | C22: =SUM(C7:C20) -> 462.08 | D22: =SUM(D4:D20) -> 182.52 | H22: =SUM(H7:H20) -> 388.08 | I22: =SUM(I4:I20) -> 256.52
A23: RU (Zahlung BVE an SVE) | C23: =C22-D22 -> 279.56 | H23: =H22-I22 -> 131.56
A24: RU (Zahlung SVE an BVE)
A25: im Haushalt SVE verbleiben | E25: =E13+E19+C23 -> 279.56 | J25: =J13+J15+J17+H23 -> 279.56
A27: Inhalt wird berechnet (keine Eingabe) | D27: SVE | F27: im Haushalt verbleiben | J27: SVE
A28: Inhalt wird berechnet (keine Eingabe) | D28: FB+ | E28: =E13 -> 0 | I28: FB+ | J28: =J13 -> 0
A29: Ergebnis wird berechnet (keine Eingabe) | D29: FBH | E29: =E15 -> 0 | I29: FBH | J29: =J15 -> 148
D30: UAB | E30: =E19 -> 0 | I30: KAB | J30: =J17 -> 0
A31: BVE = besser verdienender Elternteil | D31: Zahlung BVE | E31: =C23 -> 279.56 | I31: Zahlung BVE | J31: =H23 -> 131.56
A32: SVE = Schlechter verdienender Elternteil | D32: Summe | E32: =SUM(E28:E31) -> 279.56 | I32: Summe | J32: =SUM(J28:J31) -> 279.56
A33: FB+ = Familienbonus Plus | B33: Info
A34: FBH = Familienbeihilfe | B34: Info
A35: KAB = Kinderabsetzbetrag | B35: Info
A36: PU = Prozentunterhalt
A37: TFLA = Transferleistungsausgleich
A38: Tlei = Transferleistungen
A39: UAB = Unterhaltsabsetzbetrag | B39: Info

Sheet 10 Ob 23-18g TL nach Unterhalti
A1: Kennwort entsperren / schützen = gesperrt | C1: Zahlung | D1: Zahlung | H1: Zahlung | I1: Zahlung
A2: ='4 Ob 8-19h Betreuung gerundet'!A5 -> Spalten B-E: BVE bezieht Tlei | B2: Tlei BVE | C2: BVE ==> SVE | D2: BVE <== SVE | E2: Tlei SVE | G2: Tlei BVE | H2: BVE ==> SVE | I2: BVE <== SVE | J2: Tlei SVE
A3: ='4 Ob 8-19h Betreuung gerundet'!A6 -> Spalten G-J: SVE bezieht Tlei
A4: ='4 Ob 8-19h Betreuung gerundet'!A7 -> Betreuungszeit | B4: ='4 Ob 8-19h Betreuung gerundet'!B7 -> 0.5 | E4: =BZSVE -> 0.5 | G4: ='4 Ob 8-19h Betreuung gerundet'!B7 -> 0.5 | J4: =E4 -> 0.5
A5: UBGR | B5: =UBGRBVE -> 4312 | E5: =UBGRSVE -> 2028 | G5: =UBGRBVE -> 4312 | J5: =UBGRSVE -> 2028
A6: Prozentsatz | B6: =PROZBVE -> 0.18 | E6: =PROZSVE -> 0.18 | G6: =PROZBVE -> 0.18 | J6: =PROZSVE -> 0.18
A7: ='4 Ob 8-19h Betreuung gerundet'!A10 -> Prozentunterhalt BVE (PU BVE) | B7: =PUBVE -> 776.16 | G7: ='4 Ob 8-19h Betreuung gerundet'!B10 -> 776.16
A8: ='4 Ob 8-19h Betreuung gerundet'!A11 -> Prozentunterhalt SVE (PU SVE) | E8: =PUSVE -> 365.04 | J8: ='4 Ob 8-19h Betreuung gerundet'!J11 -> 365.04
A9: ='4 Ob 8-19h Betreuung gerundet'!A12 -> Anteil am Prozentunterhalt | B9: =B7/(B7+E8) -> 0.680126183 | E9: =E8/(B7+E8) -> 0.319873817 | G9: =B9 -> 0.680126183 | J9: =E9 -> 0.319873817
A10: ='4 Ob 8-19h Betreuung gerundet'!A13 -> reduzierter PU BVE | B10: =B7*E4 -> 388.08 | G10: =B10 -> 388.08
A11: ='4 Ob 8-19h Betreuung gerundet'!A14 -> reduzierter PU SVE | E11: =E8*B4 -> 182.52 | J11: =J8*G4 -> 182.52
A12: ='4 Ob 8-19h Betreuung gerundet'!A15 -> Verrechnung reduzierte Pue | C12: =B7*E4 -> 388.08 | D12: =E8*B4 -> 182.52 | H12: =C12 -> 388.08 | I12: =D12 -> 182.52
A13: ='4 Ob 8-19h Betreuung gerundet'!A16 -> Familienbonus Plus (FB +) (1) | B13: =FABOBVE -> 0 | E13: =FABOSVE -> 0 | G13: =FABOBVE -> 0 | J13: =FABOSVE -> 0
A14: ='4 Ob 8-19h Betreuung gerundet'!A17 -> FB + Ausgleich | C14: =B13*E9 -> 0 | D14: =E13*B9 -> 0 | H14: =B13*E9 -> 0 | I14: =E13*B9 -> 0
A15: ='4 Ob 8-19h Betreuung gerundet'!A18 -> Familienbeihilfe (FBH) (2) | B15: =FBHBVE -> 148 | J15: =FBHSVE -> 148
A16: ='4 Ob 8-19h Betreuung gerundet'!A19 -> Ausgleich FBH | C16: =B15*E9 -> 47.34132492 | I16: =J15*G9 -> 100.6586751
A17: ='4 Ob 8-19h Betreuung gerundet'!A20 -> Kinderabsetzbetrag (KAB) | B17: =KABBVE -> 0 | J17: ='4 Ob 8-19h Betreuung gerundet'!J20 -> 0
A18: ='4 Ob 8-19h Betreuung gerundet'!A21 -> Ausgleich KAB | C18: =B17*E9 -> 0 | I18: =J17*G9 -> 0
A19: ='4 Ob 8-19h Betreuung gerundet'!A22 -> Unterhaltsabsetzbetrag (UAB) (3) | E19: =UABSVE -> 0 | G19: =UABBVE -> 0
A20: ='4 Ob 8-19h Betreuung gerundet'!A23 -> Ausgleich UAB | D20: =E19*B9 -> 0 | H20: =G19*J9 -> 0
A22: Summen vor Saldierung | C22: =SUM(C7:C20) -> 435.4213249 | D22: =SUM(D4:D20) -> 182.52 | H22: =SUM(H7:H20) -> 388.08 | I22: =SUM(I4:I20) -> 283.1786751
A23: RU (Zahlung BVE an SVE) | C23: =C22-D22 -> 252.9013249 | H23: =H22-I22 -> 104.9013249
A24: RU (Zahlung SVE an BVE)
A25: im Haushalt SVE verbleiben | E25: =E13+E19+C23 -> 252.9013249 | J25: =J13+J15+J17+H23 -> 252.9013249
A27: Inhalt wird berechnet (keine Eingabe) | D27: SVE | F27: im Haushalt verbleiben | J27: SVE
A28: Inhalt wird berechnet (keine Eingabe) | D28: FB+ | E28: =E13 -> 0 | I28: FB+ | J28: =J13 -> 0
A29: Ergebnis wird berechnet (keine Eingabe) | D29: FBH | E29: =E15 -> 0 | I29: FBH | J29: =J15 -> 148
D30: UAB | E30: =E19 -> 0 | I30: KAB | J30: =J17 -> 0
A31: BVE = besser verdienender Elternteil | D31: Zahlung BVE | E31: =C23 -> 252.9013249 | I31: Zahlung BVE | J31: =H23 -> 104.9013249
A32: SVE = Schlechter verdienender Elternteil | D32: Summe | E32: =SUM(E28:E31) -> 252.9013249 | I32: Summe | J32: =SUM(J28:J31) -> 252.9013249
A33: FB+ = Familienbonus Plus | B33: Info
A34: FBH = Familienbeihilfe | B34: Info
A35: KAB = Kinderabsetzbetrag | B35: Info
A36: PU = Prozentunterhalt
A37: TFLA = Transferleistungsausgleich
A38: Tlei = Transferleistungen
A39: UAB = Unterhaltsabsetzbetrag | B39: Info
